bitfinex/quotes_SOLUSD_20250422
["timestamp","ask_amount","ask_price","bid_price","bid_amount"]
[1745359785282,33.60871689,147.24,147.15,18.64964886]
[1745359785497,33.60871689,147.24,147.18,33.60871689]
[1745359785691,26.0,147.21,147.14,33.60871689]
[1745359785882,26.0,147.21,147.17,33.60871689]
[1745359786891,26.0,147.24,147.17,33.60871689]
[1745359787098,26.0,147.24,147.14,33.60871689]
[1745359787099,26.0,147.24,147.21,33.60871689]
[1745359787275,88.1895,147.31,147.21,33.60871689]
[1745359787276,33.59605578,147.3,147.21,33.60871689]
[1745359787472,33.60871689,147.31,147.21,33.60871689]
[1745359787777,26.0,147.27,147.21,28.4]
[1745359787969,33.60871689,147.28,147.22,33.60871689]
[1745359788180,33.60871689,147.28,147.15,82.0]
[1745359788181,26.0,147.21,147.13,6.5216]
[1745359788381,59.60871689,147.23,147.17,33.60871689]
[1745359788899,26.0,147.23,147.18,33.60871689]
[1745359789080,59.60871689,147.23,147.18,33.60871689]
[1745359789278,59.60871689,147.23,147.14,52.25836575]
[1745359789279,26.0,147.22,147.19,33.60871689]
[1745359789481,26.0,147.22,147.14,52.25836575]
[1745359789690,26.0,147.21,147.18,33.60871689]
[1745359790499,26.0,147.23,147.18,33.60871689]
[1745359790691,26.0,147.21,147.18,33.60871689]
[1745359790885,26.0,147.21,147.14,33.60871689]
[1745359791095,26.0,147.21,147.18,33.60871689]
[1745359791306,26.0,147.22,147.15,18.64964886]
[1745359791482,26.0,147.22,147.19,33.60871689]
[1745359791677,26.0,147.22,147.15,18.64964886]
[1745359792009,26.0,147.21,147.14,33.60871689]
[1745359792181,26.0,147.21,147.17,33.60871689]
[1745359792508,26.0,147.23,147.18,33.60871689]
[1745359792708,26.0,147.22,147.19,33.60871689]
[1745359792894,18.64964886,147.26,147.14,33.60871689]
[1745359792895,26.0,147.21,147.14,33.60871689]
[1745359793077,26.0,147.21,147.18,33.60871689]
[1745359793278,26.0,147.21,147.14,33.60871689]
[1745359793504,59.60871689,147.23,147.17,33.60871689]
[1745359793708,20.0,147.11,147.04,0.03]
[1745359793883,26.0,147.17,147.04,0.03]
[1745359794082,26.0,147.17,147.09,32.60871689]
[1745359794083,26.0,147.13,147.09,32.60871689]
[1745359794289,26.0,147.13,147.04,0.03]
[1745359794500,26.0,147.17,147.1,33.60871689]
[1745359794696,26.0,147.15,147.11,33.60871689]
[1745359794888,52.25836575,147.15,147.09,33.60871689]
[1745359795206,18.64964886,147.22,147.14,33.60871689]
[1745359795386,33.60871689,147.23,147.1,26.0]
[1745359795387,18.64964886,147.23,147.17,33.60871689]
[1745359795583,26.0,147.2,147.11,18.64964886]
[1745359795796,26.0,147.19,147.15,33.60871689]
[1745359796609,26.0,147.2,147.16,33.60871689]
[1745359796988,26.0,147.2,147.1,32.79770839]
[1745359796989,26.0,147.2,147.15,33.60871689]
[1745359797204,33.60871689,147.24,147.17,33.60871689]
[1745359797515,18.64964886,147.27,147.2,33.60871689]
[1745359797711,18.64964886,147.28,147.22,33.60871689]
[1745359797899,26.0,147.24,147.21,33.60871689]
[1745359798096,33.60871689,147.26,147.2,33.60871689]
[1745359798431,26.0,147.17,147.08,47.04964886]
[1745359798707,26.0,147.18,147.14,33.60871689]
[1745359799686,6.7907103,147.26,147.16,33.60871689]
[1745359799890,59.60871689,147.22,147.16,33.60871689]
[1745359800089,26.0,147.19,147.16,33.60871689]
[1745359800312,26.0,147.19,147.1,32.79798572]
[1745359800606,26.0,147.19,147.14,33.60871689]
[1745359800784,26.0,147.19,147.1,32.79799956]
[1745359800979,59.60871689,147.19,147.13,33.60871689]
[1745359801185,26.0,147.19,147.1,26.0]
[1745359801381,26.0,147.19,147.14,33.60871689]
[1745359801608,26.0,147.19,147.15,33.60871689]
[1745359802008,26.0,147.19,147.14,33.60871689]
[1745359802510,6.7902492,147.27,147.16,33.60871689]
[1745359802715,6.78886625,147.3,147.16,6.79532481]
[1745359803008,59.60871689,147.25,147.19,33.60871689]
[1745359803304,22.72176695,147.25,147.19,22.72176695]
[1745359803515,6.78886625,147.3,147.14,41.37141581]
[1745359803704,18.64964886,147.29,147.21,22.72176695]
[1745359803912,41.37141581,147.25,147.19,22.72176695]
[1745359804098,22.72176695,147.2,147.14,22.72176695]
[1745359804304,22.72176695,147.18,147.12,22.72176695]
[1745359804495,22.72176695,147.17,147.09,233.0]
[1745359804700,26.0,147.18,147.08,28.4]
[1745359804892,22.72176695,147.16,147.1,22.72176695]
[1745359805093,22.72176695,147.17,147.11,22.72176695]
[1745359805623,22.72176695,147.17,147.08,28.4]
[1745359805821,26.0,147.18,147.08,28.4]
[1745359805822,22.72176695,147.16,147.08,28.4]
[1745359806122,22.72176695,147.16,147.1,22.72176695]
[1745359806318,22.72176695,147.15,147.09,22.72176695]
[1745359806494,26.0,147.15,147.08,51.12176695]
[1745359806700,48.72176695,147.15,147.08,51.12176695]
[1745359806896,48.72176695,147.12,147.06,0.03]
[1745359807191,26.0,147.12,147.07,22.72176695]
[1745359807399,26.0,147.12,147.07,33.61947472]
[1745359807595,33.61947472,147.13,147.06,0.03]
[1745359807834,26.0,147.1,147.06,0.03]
[1745359808007,33.61947472,147.09,147.06,0.03]
[1745359808205,33.61947472,147.07,147.06,0.03]
[1745359808448,78.26912358,147.07,147.06,0.03]
[1745359808606,52.26912358,147.07,147.06,0.03]
[1745359808921,59.06860681,147.07,147.06,0.03]
[1745359809135,92.68808153,147.07,147.06,0.03]
[1745359810326,18.64964886,147.05,147.04,0.03]
[1745359810504,52.26912358,147.05,147.04,0.03]
[1745359810700,72.26912358,147.05,147.04,0.03]
[1745359810900,33.61947472,146.98,146.97,0.03]
[1745359811315,44.64964886,147.01,146.97,0.03]
[1745359811519,59.61947472,146.98,146.97,0.03]
[1745359811722,78.26912358,146.98,146.97,0.03]
[1745359812217,26.0,146.95,146.92,1.0442338]
[1745359812418,33.61947472,146.94,146.92,1.0442338]
[1745359812724,18.64964886,146.97,146.92,1.0442338]
[1745359812725,67.23894944,146.93,146.92,1.0442338]
[1745359812935,52.26912358,146.93,146.92,1.0442338]
[1745359813223,1.0,146.99,146.92,1.0442338]
[1745359813224,26.0,146.94,146.92,1.0442338]
[1745359813402,26.0,146.93,146.92,1.0442338]
[1745359813598,26.0,146.93,146.92,34.66370852]
[1745359813801,26.0,146.96,146.92,34.66370852]
[1745359814027,26.0,146.96,146.93,33.61947472]
[1745359814326,26.0,146.98,146.92,1.0442338]
[1745359814634,33.61947472,147.0,146.94,33.61947472]
[1745359814843,26.0,146.97,146.92,1.0442338]
[1745359815019,26.0,146.97,146.93,33.61947472]
[1745359815214,26.0,146.97,146.95,33.61947472]
[1745359815448,18.64964886,147.03,146.96,33.61947472]
[1745359815611,61.95947472,147.07,147.0,33.61947472]
[1745359815612,18.64964886,147.06,147.0,33.61947472]
[1745359815813,6.634,147.12,147.01,33.61947472]
[1745359816043,26.0,147.04,147.01,33.61947472]
[1745359816339,33.61947472,147.05,146.95,26.0]
[1745359816546,26.0,147.07,147.01,33.61947472]
[1745359816742,26.0,147.04,146.95,26.0]
[1745359816921,18.64964886,147.06,146.95,26.0]
[1745359817112,33.61947472,147.04,146.98,33.61947472]
[1745359817318,26.0,147.02,146.94,26.99744522]
[1745359817540,26.0,147.02,146.99,33.61947472]
[1745359817741,26.0,147.01,146.98,33.61947472]
[1745359817918,26.0,147.04,146.99,33.61947472]
[1745359818116,26.0,147.03,146.94,1.5423]
[1745359818342,59.61947472,147.03,146.97,33.61947472]
[1745359818643,33.61947472,147.01,146.95,33.61947472]
[1745359818822,33.61947472,146.99,146.92,1.0442338]
[1745359819016,33.61947472,147.0,146.94,33.61947472]
[1745359819216,33.61947472,147.0,146.92,1.0442338]
[1745359819412,26.0,147.01,146.93,33.61947472]
[1745359819644,26.0,146.99,146.96,33.61947472]
[1745359819948,33.61947472,146.99,146.93,33.61947472]
[1745359820119,59.61947472,146.99,146.93,33.61947472]
[1745359820322,26.0,146.99,146.96,33.61947472]
[1745359821144,26.0,146.99,146.95,33.61947472]
[1745359821345,26.0,146.99,146.94,33.61947472]
[1745359821548,26.0,146.99,146.92,1.0442338]
[1745359821854,26.0,146.99,146.94,33.61947472]
[1745359822138,33.61947472,146.98,146.92,1.0442338]
[1745359822319,26.0,146.95,146.92,1.0442338]
[1745359822840,59.61947472,146.95,146.92,1.0442338]
[1745359823055,59.61947472,146.93,146.92,1.0442338]
[1745359823228,78.26912358,146.93,146.92,1.0442338]
[1745359823431,85.8885983,146.93,146.92,1.0442338]
[1745359823830,33.61947472,146.93,146.92,1.0442338]
[1745359824031,26.0,146.93,146.92,1.0442338]
[1745359825319,6.80279074,147.0,146.92,34.66370852]
[1745359825525,33.61947472,146.98,146.92,34.66370852]
[1745359825730,26.0,146.97,146.92,34.66370852]
[1745359825965,18.64964886,147.03,146.92,1.0442338]
[1745359826127,33.61947472,147.01,146.92,1.0442338]
[1745359826324,33.61947472,147.02,146.96,33.61947472]
[1745359826525,6.80097867,147.04,146.92,1.0442338]
[1745359826526,18.64964886,146.96,146.92,1.0442338]
[1745359826825,33.61947472,146.97,146.92,1.0442338]
[1745359827043,26.0,146.94,146.93,33.61947472]
[1745359827541,110.36,147.05,146.93,33.61947472]
[1745359827744,26.0,146.96,146.93,33.61947472]
[1745359827942,26.0,146.96,146.94,33.61947472]
[1745359828142,6.80087051,147.04,146.95,33.61947472]
[1745359828337,52.26912358,147.01,146.96,33.61947472]
[1745359828539,33.61947472,147.0,146.94,33.61947472]
[1745359828726,33.61947472,146.99,146.93,33.61947472]
[1745359828926,33.61947472,146.97,146.92,1.0442338]
[1745359829126,26.0,146.99,146.92,34.66370852]
[1745359829343,44.64964886,146.98,146.93,33.61947472]
[1745359829658,26.0,146.98,146.93,33.61947472]
[1745359830054,26.0,146.98,146.95,33.61947472]
[1745359830351,6.80087051,147.04,146.95,33.61947472]
[1745359830547,33.61947472,147.0,146.95,33.61947472]
[1745359830853,26.0,147.01,146.95,33.61947472]
[1745359831054,59.61947472,147.01,146.92,1.0442338]
[1745359831235,33.61947472,147.0,146.95,33.61947472]
[1745359831543,52.26912358,147.0,146.92,1.0442338]
[1745359831744,26.0,146.96,146.92,1.0442338]
[1745359831956,26.0,146.96,146.93,33.61947472]
[1745359832939,26.0,146.98,146.93,33.61947472]
[1745359833140,26.0,146.98,146.92,1.0442338]
[1745359833481,59.61947472,146.98,146.92,34.66370852]
[1745359833636,26.0,146.98,146.93,33.61947472]
[1745359833836,59.61947472,146.98,146.92,34.66370852]
[1745359834335,26.0,146.98,146.93,33.61947472]
[1745359834864,256.95457279,147.06,146.96,33.61947472]
[1745359835038,16.99712479,147.09,146.99,33.61947472]
[1745359835233,40.42003915,147.05,146.99,33.61947472]
[1745359835434,22.78346774,147.03,146.93,61.7570712]
[1745359835649,26.0,147.0,146.95,22.78346774]
[1745359836042,48.78346774,147.01,146.93,6.1677]
[1745359836247,26.0,147.01,146.96,22.78346774]
[1745359836444,26.0,147.01,146.98,22.78346774]
[1745359837045,26.0,147.02,146.93,35.75705791]
[1745359837254,26.0,147.02,146.97,33.66562864]
[1745359837451,26.0,147.02,146.93,39.83332864]
[1745359837452,59.66562864,147.02,146.93,39.83332864]
[1745359837767,59.66562864,147.02,146.97,33.66562864]
[1745359838651,33.66562864,146.98,146.93,6.1677]
[1745359838843,26.063,147.04,146.95,33.66562864]
[1745359839055,33.66562864,146.99,146.93,39.83332864]
[1745359839251,32.80281532,147.0,146.93,39.83332864]
[1745359839438,33.66562864,146.99,146.93,39.83332864]
[1745359840072,33.66562864,146.99,146.94,33.66562864]
[1745359840444,33.66562864,146.99,146.93,6.1677]
[1745359840647,33.66562864,146.99,146.94,33.66562864]
[1745359840844,59.66562864,147.0,146.95,33.66562864]
[1745359841143,33.66562864,146.98,146.92,36.22946244]
[1745359841458,26.0,147.0,146.93,33.66562864]
[1745359841666,33.66562864,146.99,146.92,2.5638338]
[1745359841969,33.66562864,146.99,146.93,33.66562864]
[1745359842264,33.66562864,146.98,146.92,36.22946244]
[1745359842678,33.66562864,146.97,146.92,2.5638338]
[1745359842858,68.45932847,147.0,146.92,2.5638338]
[1745359842859,33.66562864,146.96,146.92,1.0442338]
[1745359843186,33.66562864,146.94,146.92,1.0442338]
[1745359843353,33.66562864,146.93,146.92,1.0442338]
[1745359844348,52.3152775,146.93,146.92,1.0442338]
[1745359845079,85.98090614,146.93,146.92,1.0442338]
[1745359845453,92.78686816,146.93,146.92,1.0442338]
[1745359845871,33.66562864,146.88,146.87,0.03]
[1745359846073,52.3152775,146.88,146.87,0.03]
[1745359846776,85.98090614,146.88,146.87,0.03]
[1745359847078,85.98090614,146.88,146.86,0.03]
[1745359847079,18.64964886,146.87,146.86,0.03]
[1745359847257,85.98090614,146.87,146.86,1e-08]
[1745359847459,92.78964856,146.87,146.86,1e-08]
[1745359847659,61.63652678,146.87,146.86,1e-08]
[1745359847971,2.51250686,146.87,146.86,1e-08]
[1745359848167,36.1781355,146.87,146.86,1e-08]
[1745359848378,33.66562864,146.87,146.86,1e-08]
[1745359848764,59.66562864,146.87,146.86,1e-08]
[1745359849555,85.12401992,146.87,146.86,1e-08]
[1745359849758,95.30804704,146.87,146.86,1e-08]
[1745359851165,61.6424184,146.87,146.86,1e-08]
[1745359851479,2.51839848,146.87,146.86,1e-08]
[1745359851680,36.18402712,146.87,146.86,1e-08]
[1745359851975,2.51839848,146.87,146.86,1e-08]
[1745359852482,36.18402712,146.87,146.86,1e-08]
[1745359852776,2.51839848,146.87,146.86,1e-08]
[1745359853556,33.66562864,146.88,146.86,1e-08]
[1745359853865,33.66562864,146.87,146.86,1e-08]
[1745359854065,85.98090614,146.87,146.86,1e-08]
[1745359855459,92.78964856,146.87,146.86,1e-08]
[1745359855656,95.31146192,146.87,146.86,1e-08]
[1745359856459,95.31146192,146.87,146.82,11.56977329]
[1745359856460,18.64964886,146.83,146.82,11.56977329]
[1745359856672,52.3152775,146.83,146.82,11.56977329]
[1745359856866,54.83709086,146.83,146.82,11.56977329]
[1745359857190,80.83709086,146.83,146.82,11.56977329]
[1745359857364,62.187442,146.83,146.82,11.56977329]
[1745359857865,2.52181336,146.83,146.82,11.56977329]
[1745359858460,33.66562864,146.9,146.82,45.23540193]
[1745359858690,33.66562864,146.9,146.85,33.66562864]
[1745359858871,59.66562864,146.89,146.84,33.66562864]
[1745359859073,33.66562864,146.88,146.82,11.56977329]
[1745359859273,22.83248861,146.88,146.82,11.56977329]
[1745359859467,22.83248861,146.88,146.82,34.4022619]
[1745359859971,26.0,146.89,146.85,22.83248861]
[1745359860161,22.83248861,146.9,146.82,11.56977329]
[1745359860363,22.83248861,146.9,146.84,22.83248861]
[1745359860677,22.83248861,146.9,146.82,11.56977329]
[1745359860678,26.0,146.89,146.85,22.83248861]
[1745359860998,48.83248861,146.89,146.83,22.83248861]
[1745359861280,48.83248861,146.89,146.84,22.83248861]
[1745359861487,48.83248861,146.89,146.82,11.56977329]
[1745359861488,22.83248861,146.88,146.82,11.56977329]
[1745359861693,22.83248861,146.88,146.83,22.83248861]
[1745359862064,26.0,146.89,146.83,22.83248861]
[1745359862269,48.83248861,146.89,146.84,22.83248861]
[1745359862595,34.8431,146.97,146.85,22.83248861]
[1745359862766,22.83248861,146.89,146.84,22.83248861]
[1745359862958,48.83248861,146.9,146.84,22.83248861]
[1745359863167,22.83248861,146.9,146.85,22.83248861]
[1745359863365,48.83248861,146.89,146.83,22.83248861]
[1745359863582,6.80457267,146.96,146.88,22.83248861]
[1745359863795,5.67314746,147.02,146.91,22.83248861]
[1745359863975,26.0,146.96,146.92,22.83248861]
[1745359864175,26.0,146.96,146.9,22.83248861]
[1745359864176,48.83248861,146.96,146.9,22.83248861]
[1745359864366,5.67314746,147.02,146.93,22.83248861]
[1745359864568,22.83248861,147.01,146.96,22.83248861]
[1745359864771,22.83248861,147.02,146.95,6.5255]
[1745359864981,22.83248861,147.01,146.96,22.83248861]
[1745359865189,48.83248861,147.01,146.96,22.83248861]
[1745359865365,22.83248861,147.01,146.96,22.83248861]
[1745359865686,48.83248861,147.01,146.96,22.83248861]
[1745359865886,22.83248861,147.01,146.96,22.83248861]
[1745359866072,0.063,147.04,146.98,22.83248861]
[1745359866272,0.063,147.04,146.99,22.83248861]
[1745359866578,0.063,147.04,147.0,22.83248861]
[1745359866962,26.0,147.02,146.95,6.5255]
[1745359867178,0.063,147.04,147.01,22.83248861]
[1745359867599,0.063,147.04,146.95,13.3302629]
[1745359867600,0.063,147.04,147.02,22.83248861]
[1745359867975,0.063,147.04,147.03,22.83248861]
[1745359868186,0.063,147.04,147.02,22.83248861]
[1745359868402,0.063,147.04,147.0,22.83248861]
[1745359868572,0.063,147.04,146.99,1.5213]
[1745359868778,22.83248861,147.02,146.99,1.5213]
[1745359868995,22.83248861,147.02,146.95,6.5255]
[1745359869196,22.83248861,147.02,146.97,22.83248861]
[1745359869399,0.063,147.04,146.97,33.66683644]
[1745359869699,0.063,147.04,146.99,33.66683644]
[1745359870077,0.063,147.04,146.96,18.64964886]
[1745359870278,33.66683644,147.03,146.97,33.66683644]
[1745359870478,33.66683644,146.99,146.95,6.5255]
[1745359870680,33.66683644,146.98,146.94,1.5213]
[1745359870988,33.66683644,146.96,146.91,40.19233644]
[1745359871291,18.64964886,146.99,146.91,6.5255]
[1745359871497,33.66683644,146.96,146.91,40.19233644]
[1745359871799,33.66683644,146.98,146.93,33.66683644]
[1745359871981,33.66683644,146.97,146.91,6.5255]
[1745359872306,33.66683644,146.96,146.91,6.5255]
[1745359872509,33.66683644,146.95,146.91,6.5255]
[1745359872806,33.66683644,146.92,146.87,6.3575]
[1745359873012,26.0,146.93,146.84,235.1654]
[1745359873013,33.66683644,146.9,146.84,35.29223644]
[1745359873214,33.66683644,146.87,146.84,1.6254]
[1745359873552,33.66683644,146.89,146.84,1.6254]
[1745359873696,33.66683644,146.87,146.84,1.6254]
[1745359873882,18.64964886,146.89,146.82,11.56977329]
[1745359874081,18.64964886,146.89,146.82,45.23660973]
[1745359874291,26.0,146.9,146.82,45.23660973]
[1745359874489,122.2588653,147.03,146.89,33.66683644]
[1745359874696,26.31939946,147.02,146.92,33.66683644]
[1745359874916,33.66683644,146.95,146.89,33.66683644]
[1745359875124,33.66683644,146.95,146.9,33.66683644]
[1745359875298,33.66683644,146.95,146.89,33.66683644]
[1745359875625,26.0,146.96,146.89,33.66683644]
[1745359875838,33.66683644,146.93,146.88,6.3575]
[1745359876014,33.66683644,146.92,146.87,33.66683644]
[1745359876214,33.66683644,146.91,146.85,33.66683644]
[1745359876421,33.66683644,146.92,146.84,28.24]
[1745359876633,33.66683644,146.92,146.86,33.66683644]
[1745359876800,33.66683644,146.92,146.87,33.66683644]
[1745359877201,33.66683644,146.94,146.88,33.66683644]
[1745359877404,33.66683644,146.94,146.89,33.66683644]
[1745359877613,26.0,146.96,146.84,28.24]
[1745359877614,33.66683644,146.92,146.84,28.24]
[1745359877816,33.66683644,146.91,146.84,28.24]
[1745359878015,33.66683644,146.92,146.87,33.66683644]
[1745359878226,26.0,146.96,146.89,33.66683644]
[1745359878430,33.66683644,146.95,146.9,33.66683644]
[1745359878601,33.66683644,146.94,146.88,33.66683644]
[1745359878803,33.66683644,146.93,146.87,33.66683644]
[1745359879221,33.66683644,146.93,146.88,33.66683644]
[1745359879433,33.66683644,146.91,146.83,32.3575]
[1745359879729,33.66683644,146.89,146.83,40.02433644]
[1745359879915,33.66683644,146.89,146.84,33.66683644]
[1745359880430,33.66683644,146.88,146.83,40.02433644]
[1745359880617,26.0,146.94,146.87,33.66683644]
[1745359880832,26.0,146.93,146.89,33.66683644]
[1745359881012,33.66683644,146.93,146.87,33.66683644]
[1745359881209,33.66683644,146.92,146.87,33.66683644]
[1745359881412,33.66683644,146.93,146.87,33.66683644]
[1745359881711,33.66683644,146.93,146.83,32.3575]
[1745359881712,33.66683644,146.93,146.84,18.64964886]
[1745359882122,28.24,146.98,146.84,18.64964886]
[1745359882305,18.64964886,146.97,146.86,59.66683644]
[1745359882506,33.66683644,146.95,146.86,59.66683644]
[1745359882735,18.64964886,146.97,146.88,33.66683644]
[1745359882736,33.66683644,146.94,146.88,33.66683644]
[1745359882925,33.66683644,146.94,146.86,59.66683644]
[1745359883112,33.66683644,146.95,146.9,33.66683644]
[1745359883451,0.063,147.02,146.94,33.66683644]
[1745359883737,0.063,147.02,146.99,33.66683644]
[1745359883936,0.063,147.02,146.93,40.02433644]
[1745359884113,0.063,147.02,147.0,33.66683644]
[1745359884311,0.063,147.02,147.01,33.66683644]
[1745359887022,0.063,147.02,147.0,33.66683644]
[1745359887206,0.063,147.02,147.01,33.66683644]
[1745359887733,0.063,147.02,147.01,85.11874364]
[1745359887939,0.063,147.04,147.02,25.19264886]
[1745359888134,0.063,147.04,147.03,33.66683644]
[1745359888509,0.063,147.04,147.02,6.543]
[1745359888712,0.063,147.04,147.03,33.66683644]
[1745359889934,0.063,147.04,147.02,33.66683644]
[1745359890130,0.063,147.04,147.03,33.66683644]
[1745359890508,0.063,147.04,147.02,33.66683644]
[1745359891250,0.063,147.04,147.03,33.66683644]
[1745359891426,0.063,147.08,147.03,52.3164853]
[1745359891612,0.063,147.08,147.07,33.66683644]
[1745359891815,0.063,147.08,147.07,94.36140497]
[1745359892109,0.063,147.18,147.11,18.64964886]
[1745359892323,0.063,147.18,147.12,33.66683644]
[1745359893046,0.063,147.18,147.12,52.3164853]
[1745359893213,0.063,147.18,147.12,193.98332174]
[1745359893420,0.063,147.18,147.17,33.66683644]
[1745359893738,0.063,147.18,147.17,149.23294838]
[1745359894111,0.063,147.18,147.17,123.78843644]
[1745359894316,0.063,147.18,147.13,32.543]
[1745359894517,0.063,147.18,147.17,33.66683644]
[1745359895848,0.063,147.18,147.14,26.0]
[1745359896025,0.063,147.18,147.16,33.66683644]
[1745359896225,0.063,147.18,147.17,33.66683644]
[1745359896726,0.063,147.18,147.16,33.66683644]
[1745359896925,0.063,147.18,147.17,33.66683644]
[1745359898143,0.063,147.18,147.14,78.3164853]
[1745359898345,0.063,147.18,147.15,33.66683644]
[1745359898560,0.063,147.18,147.14,26.0]
[1745359898714,0.063,147.18,147.13,33.66683644]
[1745359898915,33.72983644,147.18,147.12,33.66683644]
[1745359899326,33.72983644,147.18,147.11,28.22]
[1745359899327,33.66683644,147.17,147.11,28.22]
[1745359899525,33.66683644,147.16,147.11,28.22]
[1745359899735,33.66683644,147.15,147.09,33.66683644]
[1745359899917,33.66683644,147.14,147.09,33.66683644]
[1745359900337,33.66683644,147.17,147.11,33.66683644]
[1745359900636,33.66683644,147.15,147.07,27.5786]
[1745359900812,32.85749752,147.18,147.11,33.66683644]
[1745359901018,33.66683644,147.16,147.11,33.66683644]
[1745359901325,0.063,147.18,147.12,26.0]
[1745359901527,0.063,147.18,147.17,33.66683644]
[1745359901736,0.063,147.18,147.1,26.0]
[1745359901931,33.72983644,147.18,147.07,117.24543644]
[1745359902127,33.66683644,147.15,147.1,33.66683644]
[1745359902327,26.0,147.17,147.07,1.5786]
[1745359902328,33.66683644,147.14,147.07,1.5786]
[1745359902638,33.66683644,147.14,147.09,33.66683644]
[1745359902853,59.66683644,147.14,147.07,1.5786]
[1745359903024,59.66683644,147.14,147.09,33.66683644]
[1745359903223,33.66683644,147.13,147.08,33.66683644]
[1745359903731,59.66683644,147.14,147.08,33.66683644]
[1745359904037,59.66683644,147.14,147.05,60.643]
[1745359904355,59.66683644,147.14,147.08,33.66683644]
[1745359904549,33.66683644,147.13,147.08,33.66683644]
[1745359904878,0.063,147.18,147.12,33.66683644]
[1745359905035,0.063,147.18,147.16,33.66683644]
[1745359906049,0.063,147.18,147.15,33.66683644]
[1745359906252,0.063,147.18,147.07,33.66683644]
[1745359906450,33.66683644,147.16,147.07,33.66683644]
[1745359906651,33.66683644,147.16,147.1,26.0]
[1745359906963,33.66683644,147.12,147.05,34.643]
[1745359907161,26.0,147.16,147.09,33.66683644]
[1745359907365,33.66683644,147.15,147.1,33.66683644]
[1745359907839,33.66683644,147.17,147.11,33.66683644]
[1745359908040,33.66683644,147.16,147.07,33.66683644]
[1745359908240,33.66683644,147.16,147.1,33.66683644]
[1745359908460,33.66683644,147.15,147.09,33.66683644]
[1745359908669,33.66683644,147.15,147.05,34.643]
[1745359908670,33.66683644,147.1,147.02,234.7666]
[1745359908845,33.66683644,147.08,147.03,33.66683644]
[1745359909045,33.66683644,147.08,147.02,33.66683644]
[1745359909244,44.64964886,147.11,147.01,68.17311811]
[1745359909443,33.66683644,147.1,147.05,33.66683644]
[1745359909743,26.0,147.12,147.08,33.66683644]
[1745359910154,26.0,147.12,147.07,33.66683644]
[1745359910558,26.0,147.12,147.06,33.66683644]
[1745359910761,33.66683644,147.13,147.07,33.66683644]
[1745359910944,18.64964886,147.15,147.08,33.66683644]
[1745359911150,33.66683644,147.14,147.09,33.66683644]
[1745359911351,33.66683644,147.14,147.08,33.66683644]
[1745359911548,33.66683644,147.13,147.08,33.66683644]
[1745359911960,33.66683644,147.14,147.08,33.66683644]
[1745359912472,38.98075512,147.16,147.08,33.66683644]
[1745359912683,33.66683644,147.14,147.08,33.66683644]
[1745359912874,33.66683644,147.11,147.06,33.66683644]
[1745359913046,33.66683644,147.1,147.05,33.66683644]
[1745359913555,59.66683644,147.11,147.05,33.66683644]
[1745359913860,26.0,147.12,147.04,26.0]
[1745359914062,59.66683644,147.12,147.07,33.66683644]
[1745359914261,33.66683644,147.11,147.04,26.0]
[1745359914575,18.64964886,147.15,147.04,26.0]
[1745359914576,33.66683644,147.14,147.04,32.80064024]
[1745359914770,33.66683644,147.13,147.07,33.66683644]
[1745359915480,22.75663086,147.12,147.06,22.75663086]
[1745359915973,51.44549097,147.15,147.07,22.75663086]
[1745359916156,22.75663086,147.14,147.08,22.75663086]
[1745359916358,22.75663086,147.14,147.09,22.75663086]
[1745359916762,0.063,147.18,147.11,22.75663086]
[1745359916948,22.75663086,147.17,147.11,22.75663086]
[1745359917159,48.81963086,147.18,147.12,22.75663086]
[1745359917361,22.75663086,147.17,147.11,22.75663086]
[1745359917551,0.063,147.18,147.11,22.75663086]
[1745359917767,22.75663086,147.15,147.07,55.762]
[1745359918080,22.75663086,147.12,147.07,54.1]
[1745359918248,22.75663086,147.11,147.07,28.1]
[1745359918590,26.0,147.14,147.07,22.75663086]
[1745359918753,22.75663086,147.12,147.07,22.75663086]
[1745359918951,26.0,147.14,147.08,22.75663086]
[1745359919156,26.0,147.14,147.07,22.75663086]
[1745359919157,22.75663086,147.12,147.07,22.75663086]
[1745359919877,22.75663086,147.13,147.07,22.75663086]
[1745359920087,22.75663086,147.12,147.06,26.0]
[1745359920283,22.75663086,147.1,147.04,26.0]
[1745359920486,6.79671039,147.13,147.05,22.75663086]